[Event "FIDE Chesscom Grand Swiss 2019"]
[Site "Douglas-Isle of Man"]
[Date "2019.10.15"]
[Round "6.18"]
[White "Tari, Aryan"]
[Black "Christiansen, Johan-Sebastian"]
[Result "1-0"]
[ECO "C11"]
[WhiteElo "2630"]
[BlackElo "2558"]
[Annotator "RC"]
[PlyCount "61"]
[EventDate "2019.10.10"]
[EventType "swiss"]
[EventCountry "GBR"]
[SourceTitle "playchess.com"]
[Source "ChessBase"]
[SourceQuality "1"]
[TimeControl "40/6000+30:20/3000+30:900+30"]

1. e4 {[%emt 0:00:00]} e6 {[%emt 0:00:06]} 2. d4 {[%emt 0:00:00]} d5 {[%emt 0:00:04]} 3. Nc3 {[%emt 0:00:05]} Nf6 {[%emt 0:00:31]} 4. e5 {[%emt 0:00:23]} Nfd7 {[%emt 0:00:05]} 5. f4 {[%emt 0:00:13]} c5 {[%emt 0:00:02]} 6. Nf3 {[%emt 0:00:18]} Nc6 {[%emt 0:00:04]} 7. Ne2 {[%emt 0:00:30]} Be7 {[%emt 0:02:53]} 8. c3 {[%emt 0:01:29]} Qb6 {[%emt 0:02:37]} 9. g3 {[%emt 0:00:32]} O-O {[%emt 0:04:57]} 10. Bh3 {[%emt 0:00:54]} a5 {[%emt 0:06:46]} 11. O-O {[%emt 0:07:31]} Qc7 {[%emt 0:09:31]} 12. Be3 {[%emt 0:10:50]} b5 {[%emt 0:04:57]} 13. g4 {[%emt 0:16:25]} f6 {[%emt 0:15:32]} 14. exf6 {[%emt 0:07:30]} Nxf6 {[%emt 0:01:19]} 15. Ng3 {[%emt 0:01:06]} b4 {[%emt 0:04:58]} 16. Qc2 {[%emt 0:12:06]} bxc3 {[%emt 0:03:26]} 17. bxc3 {[%emt 0:01:46]} Bd6 {[%emt 0:04:59]} 18. g5 {[%emt 0:07:41]} Ne8 {[%emt 0:03:39]} 19. Ne2 {[%emt 0:03:22]} cxd4 {[%emt 0:08:44]} 20. Nfxd4 {[%emt 0:02:53]} Nxd4 {[%emt 0:02:21]} 21. Nxd4 {[%emt 0:00:47]} Bxf4 {[%emt 0:04:03]} 22. Bxe6+ {[%emt 0:01:52]} Kh8 {[%emt 0:20:37]} 23. Bxf4 {[%emt 0:03:29]} Rxf4 {[%emt 0:00:16]} 24. Bxd5 {[%emt 0:00:23]} Rb8 {[%emt 0:02:52]} 25. Qe4 {[%emt 0:01:27]} Be6 {[%emt 0:05:22]} 26. Bxe6 {[%emt 0:02:40]} Rxf1+ {[%emt 0:00:59]} 27. Rxf1 {[%emt 0:00:05]} Nd6 {[%emt 0:00:08]} 28. Qf4 {[%emt 0:00:39]} Qd8 {[%emt 0:01:05]} 29. c4 {[%emt 0:01:09]} a4 {[%emt 0:01:02]} 30. c5 {[%emt 0:00:16]} Ne4 {[%emt 0:00:04]} 31. Nc6 {[%emt 0:00:59]} 1-0

[Event "FIDE Chesscom Grand Swiss 2019"]
[Site "Douglas-Isle of Man"]
[Date "2019.10.15"]
[Round "6.19"]
[White "Jones, Gawain C B"]
[Black "Saduakassova, Dinara"]
[Result "1/2-1/2"]
[ECO "C81"]
[WhiteElo "2688"]
[BlackElo "2481"]
[Annotator "RC"]
[PlyCount "125"]
[EventDate "2019.10.10"]
[EventType "swiss"]
[EventCountry "GBR"]
[SourceTitle "playchess.com"]
[Source "ChessBase"]
[SourceQuality "1"]
[TimeControl "40/6000+30:20/3000+30:900+30"]

1. e4 {[%emt 0:00:30]} e5 {[%emt 0:00:00]} 2. Nf3 {[%emt 0:00:23]} Nc6 {[%emt 0:00:00]} 3. Bb5 {[%emt 0:00:40]} a6 {[%emt 0:00:00]} 4. Ba4 {[%emt 0:00:04]} Nf6 {[%emt 0:00:00]} 5. O-O {[%emt 0:00:07]} Nxe4 {[%emt 0:00:00]} 6. d4 {[%emt 0:00:41]} b5 {[%emt 0:00:05]} 7. Bb3 {[%emt 0:00:03]} d5 {[%emt 0:00:04]} 8. dxe5 {[%emt 0:00:06]} Be6 {[%emt 0:00:05]} 9. Qe2 {[%emt 0:00:58]} Be7 {[%emt 0:01:08]} 10. Rd1 {[%emt 0:18:18]} O-O {[%emt 0:00:31]} 11. c3 {[%emt 0:04:42]} Nc5 {[%emt 0:23:01]} 12. Bc2 {[%emt 0:01:54]} Bg4 {[%emt 0:09:03]} 13. b4 {[%emt 0:09:36]} Na4 {[%emt 0:02:45]} 14. h3 {[%emt 0:12:15]} Bh5 {[%emt 0:09:03]} 15. Bf4 {[%emt 0:06:21]} Qd7 {[%emt 0:08:16]} 16. c4 {[%emt 0:22:44]} Nb6 {[%emt 0:14:21]} 17. c5 {[%emt 0:06:31]} Nc4 {[%emt 0:02:52]} 18. a3 {[%emt 0:00:08]} Bxf3 {[%emt 0:02:09]} 19. Qd3 {[%emt 0:05:59]} g6 {[%emt 0:01:48]} 20. Qxf3 {[%emt 0:00:05]} N6xe5 {[%emt 0:01:42]} 21. Qxd5 {[%emt 0:00:19]} Qxd5 {[%emt 0:02:00]} 22. Rxd5 {[%emt 0:00:04]} Bf6 {[%emt 0:03:53]} 23. Ra2 {[%emt 0:01:31]} c6 {[%emt 0:04:16]} 24. Rd1 {[%emt 0:00:23]} Rfd8 {[%emt 0:01:34]} 25. Nd2 {[%emt 0:02:37]} Nxd2 {[%emt 0:05:47]} 26. Rxd2 {[%emt 0:00:39]} Rxd2 {[%emt 0:03:05]} 27. Bxd2 {[%emt 0:00:04]} Rd8 {[%emt 0:00:51]} 28. Be4 {[%emt 0:00:46]} Rd4 {[%emt 0:08:02]} 29. f3 {[%emt 0:00:07]} Bg7 {[%emt 0:00:24]} 30. Bc3 {[%emt 0:03:19]} Rd1+ {[%emt 0:00:49]} 31. Kf2 {[%emt 0:00:09]} f5 {[%emt 0:00:59]} 32. Bc2 {[%emt 0:05:56]} Rc1 {[%emt 0:01:31]} 33. Bd2 {[%emt 0:02:11]} Rh1 {[%emt 0:00:05]} 34. Bf4 {[%emt 0:03:11]} Nc4 {[%emt 0:00:25]} 35. g4 {[%emt 0:00:35]} Bd4+ {[%emt 0:03:58]} 36. Ke2 {[%emt 0:00:07]} Be5 {[%emt 0:00:30]} 37. Bxe5 {[%emt 0:01:33]} Nxe5 {[%emt 0:00:04]} 38. gxf5 {[%emt 0:00:21]} Rxh3 {[%emt 0:01:09]} 39. fxg6 {[%emt 0:00:48]} hxg6 {[%emt 0:00:16]} 40. Ke3 {[%emt 0:01:55]} Nc4+ {[%emt 0:00:35]} 41. Kf4 {[%emt 0:06:24]} g5+ {[%emt 0:07:40]} 42. Kg4 {[%emt 0:05:23]} Rh2 {[%emt 0:06:58]} 43. Kxg5 {[%emt 0:03:51]} Kg7 {[%emt 0:08:52]} 44. Bb1 {[%emt 0:06:06]} Rxa2 {[%emt 0:04:55]} 45. Bxa2 {[%emt 0:00:04]} Nxa3 {[%emt 0:00:06]} 46. Bb3 {[%emt 0:00:23]} Kf8 {[%emt 0:03:15]} 47. Kf4 {[%emt 0:03:57]} Ke7 {[%emt 0:05:13]} 48. Ke3 {[%emt 0:00:26]} Kf6 {[%emt 0:00:11]} 49. Ke4 {[%emt 0:01:57]} Nb1 {[%emt 0:03:47]} 50. Kd3 {[%emt 0:00:14]} Ke5 {[%emt 0:00:06]} 51. Kc2 {[%emt 0:00:50]} Kd4 {[%emt 0:00:10]} 52. Kxb1 {[%emt 0:00:47]} Kc3 {[%emt 0:00:03]} 53. Bd5 {[%emt 0:00:46]} Kxb4 {[%emt 0:00:04]} 54. Bxc6 {[%emt 0:00:06]} Kxc5 {[%emt 0:00:02]} 55. Be4 {[%emt 0:00:24]} Kd4 {[%emt 0:00:16]} 56. Bc6 {[%emt 0:13:07]} Ke3 {[%emt 0:01:16]} 57. Kc2 {[%emt 0:00:04]} a5 {[%emt 0:00:21]} 58. Kc3 {[%emt 0:00:05]} a4 {[%emt 0:00:22]} 59. Kb4 {[%emt 0:00:05]} Kf4 {[%emt 0:00:15]} 60. Bd5 {[%emt 0:00:24]} Ke3 {[%emt 0:01:01]} 61. Bc6 {[%emt 0:15:37]} Kf4 {[%emt 0:15:10]} 62. Bxb5 {[%emt 0:00:05]} Kxf3 {[%emt 0:00:03]} 63. Kxa4 {[%emt 0:00:04]} 1/2-1/2

[Event "FIDE Chesscom Grand Swiss 2019"]
[Site "Douglas-Isle of Man"]
[Date "2019.10.15"]
[Round "6.20"]
[White "Baron, Tal"]
[Black "Dubov, Daniil"]
[Result "1-0"]
[ECO "B45"]
[WhiteElo "2531"]
[BlackElo "2699"]
[Annotator "RC"]
[PlyCount "131"]
[EventDate "2019.10.10"]
[EventType "swiss"]
[EventCountry "GBR"]
[SourceTitle "playchess.com"]
[Source "ChessBase"]
[SourceQuality "1"]
[TimeControl "40/6000+30:20/3000+30:900+30"]

1. e4 {[%emt 0:00:00]} c5 {[%emt 0:00:02]} 2. Nf3 {[%emt 0:00:00]} Nc6 {[%emt 0:00:07]} 3. d4 {[%emt 0:00:00]} cxd4 {[%emt 0:00:07]} 4. Nxd4 {[%emt 0:00:00]} Nf6 {[%emt 0:00:50]} 5. Nc3 {[%emt 0:00:00]} e6 {[%emt 0:00:08]} 6. Ndb5 {[%emt 0:07:16]} Bc5 {[%emt 0:00:12]} 7. Bf4 {[%emt 0:00:54]} O-O {[%emt 0:00:09]} 8. Bc7 {[%emt 0:00:21]} Qe7 {[%emt 0:00:06]} 9. Bd6 {[%emt 0:00:27]} Bxd6 {[%emt 0:00:03]} 10. Qxd6 {[%emt 0:00:18]} Qd8 {[%emt 0:00:02]} 11. Be2 {[%emt 0:13:44]} a6 {[%emt 0:03:00]} 12. Nc7 {[%emt 0:04:18]} Ra7 {[%emt 0:00:49]} 13. e5 {[%emt 0:01:24]} Nxe5 {[%emt 0:05:22]} 14. Qxe5 {[%emt 0:04:24]} b6 {[%emt 0:01:58]} 15. N7d5 {[%emt 0:05:21]} Nxd5 {[%emt 0:01:07]} 16. Nxd5 {[%emt 0:00:04]} exd5 {[%emt 0:02:24]} 17. O-O-O {[%emt 0:16:29]} Re8 {[%emt 0:01:57]} 18. Qh5 {[%emt 0:00:04]} g6 {[%emt 0:01:19]} 19. Qf3 {[%emt 0:00:04]} d6 {[%emt 0:01:03]} 20. Rd2 {[%emt 0:08:31]} Rae7 {[%emt 0:06:03]} 21. Qf6 {[%emt 0:03:15]} b5 {[%emt 0:08:35]} 22. a3 {[%emt 0:01:33]} Bf5 {[%emt 0:12:16]} 23. Rhd1 {[%emt 0:09:32]} Qc8 {[%emt 0:09:43]} 24. Bd3 {[%emt 0:05:10]} Bxd3 {[%emt 0:09:41]} 25. Rxd3 {[%emt 0:00:03]} a5 {[%emt 0:04:59]} 26. Qxd6 {[%emt 0:06:26]} Rc7 {[%emt 0:05:11]} 27. R3d2 {[%emt 0:01:04]} b4 {[%emt 0:02:26]} 28. a4 {[%emt 0:06:23]} Rc5 {[%emt 0:08:36]} 29. Kb1 {[%emt 0:01:09]} Re6 {[%emt 0:02:50]} 30. Qf4 {[%emt 0:03:37]} Qc6 {[%emt 0:01:45]} 31. b3 {[%emt 0:01:02]} h5 {[%emt 0:00:29]} 32. f3 {[%emt 0:02:41]} Qc8 {[%emt 0:01:27]} 33. g4 {[%emt 0:03:27]} hxg4 {[%emt 0:01:26]} 34. Qxg4 {[%emt 0:00:02]} Qc7 {[%emt 0:02:52]} 35. h4 {[%emt 0:01:03]} Re5 {[%emt 0:02:10]} 36. Rg2 {[%emt 0:02:54]} Kh7 {[%emt 0:03:17]} 37. Qd4 {[%emt 0:01:28]} Rc3 {[%emt 0:02:58]} 38. f4 {[%emt 0:01:34]} Rf5 {[%emt 0:00:30]} 39. Rf1 {[%emt 0:01:08]} Qe7 {[%emt 0:03:29]} 40. h5 {[%emt 0:01:53]} Rxh5 {[%emt 0:00:26]} 41. f5 {[%emt 0:00:59]} Re3 {[%emt 0:09:25]} 42. Ka2 {[%emt 0:03:58]} g5 {[%emt 0:08:31]} 43. Qxd5 {[%emt 0:05:22]} Qc7 {[%emt 0:04:14]} 44. Qd4 {[%emt 0:07:59]} Reh3 {[%emt 0:03:41]} 45. Re1 {[%emt 0:03:47]} Qc3 {[%emt 0:13:08]} 46. Qd7 {[%emt 0:01:00]} Qg7 {[%emt 0:01:36]} 47. Rf2 {[%emt 0:05:00]} Rh2 {[%emt 0:01:49]} 48. Rxh2 {[%emt 0:08:46]} Rxh2 {[%emt 0:00:03]} 49. Qc7 {[%emt 0:00:54]} Rh6 {[%emt 0:01:32]} 50. Re7 {[%emt 0:03:35]} Rf6 {[%emt 0:01:32]} 51. Qxa5 {[%emt 0:01:08]} g4 {[%emt 0:00:21]} 52. Re1 {[%emt 0:02:23]} Qg5 {[%emt 0:05:21]} 53. Rh1+ {[%emt 0:06:07]} Rh6 {[%emt 0:00:49]} 54. Rg1 {[%emt 0:00:38]} Rf6 {[%emt 0:08:33]} 55. Rh1+ {[%emt 0:00:02]} Rh6 {[%emt 0:00:06]} 56. Rg1 {[%emt 0:00:02]} Rf6 {[%emt 0:00:08]} 57. Qxb4 {[%emt 0:02:09]} Qxf5 {[%emt 0:00:02]} 58. Qc4 {[%emt 0:01:01]} Rg6 {[%emt 0:01:29]} 59. Rf1 {[%emt 0:00:04]} Qe5 {[%emt 0:00:09]} 60. Qxf7+ {[%emt 0:00:52]} Kh6 {[%emt 0:00:01]} 61. Qf8+ {[%emt 0:16:18]} Rg7 {[%emt 0:15:11]} 62. Rf5 {[%emt 0:01:54]} Qe7 {[%emt 0:00:02]} 63. Qh8+ {[%emt 0:00:28]} Rh7 {[%emt 0:00:01]} 64. Qd4 {[%emt 0:01:00]} Rg7 {[%emt 0:00:01]} 65. Qf4+ {[%emt 0:01:41]} Rg5 {[%emt 0:00:30]} 66. Rf6+ {[%emt 0:00:04]} 1-0

[Event "FIDE Chesscom Grand Swiss 2019"]
[Site "Douglas-Isle of Man"]
[Date "2019.10.15"]
[Round "6.21"]
[White "Inarkiev, Ernesto"]
[Black "Henderson de La Fuente, Lance"]
[Result "1-0"]
[ECO "C67"]
[WhiteElo "2693"]
[BlackElo "2494"]
[Annotator "RC"]
[PlyCount "97"]
[EventDate "2019.10.10"]
[EventType "swiss"]
[EventCountry "GBR"]
[SourceTitle "playchess.com"]
[Source "ChessBase"]
[SourceQuality "1"]
[TimeControl "40/6000+30:20/3000+30:900+30"]

1. e4 {[%emt 0:02:27]} e5 {[%emt 0:00:00]} 2. Nf3 {[%emt 0:00:13]} Nc6 {[%emt 0:00:00]} 3. Bb5 {[%emt 0:00:05]} Nf6 {[%emt 0:00:42]} 4. O-O {[%emt 0:00:52]} Nxe4 {[%emt 0:00:24]} 5. d4 {[%emt 0:00:04]} Nd6 {[%emt 0:00:10]} 6. Bxc6 {[%emt 0:00:04]} dxc6 {[%emt 0:00:09]} 7. dxe5 {[%emt 0:00:03]} Nf5 {[%emt 0:00:08]} 8. Qxd8+ {[%emt 0:00:03]} Kxd8 {[%emt 0:00:07]} 9. Nc3 {[%emt 0:00:05]} Bd7 {[%emt 0:01:31]} 10. Rd1 {[%emt 0:08:06]} Kc8 {[%emt 0:00:28]} 11. Ng5 {[%emt 0:01:37]} Be8 {[%emt 0:02:32]} 12. b3 {[%emt 0:00:04]} h6 {[%emt 0:01:37]} 13. Nge4 {[%emt 0:00:09]} Bd7 {[%emt 0:05:40]} 14. Bb2 {[%emt 0:01:05]} Be7 {[%emt 0:02:28]} 15. Rd3 {[%emt 0:05:07]} Nh4 {[%emt 0:09:45]} 16. Ne2 {[%emt 0:05:03]} Bf5 {[%emt 0:03:30]} 17. N2g3 {[%emt 0:00:43]} Be6 {[%emt 0:00:55]} 18. Nh5 {[%emt 0:04:11]} Rg8 {[%emt 0:01:06]} 19. f3 {[%emt 0:01:15]} b6 {[%emt 0:04:18]} 20. g3 {[%emt 0:36:45]} Ng6 {[%emt 0:01:56]} 21. Kg2 {[%emt 0:01:11]} Kb7 {[%emt 0:05:56]} 22. g4 {[%emt 0:07:23]} a5 {[%emt 0:10:57]} 23. a4 {[%emt 0:00:13]} Rae8 {[%emt 0:05:49]} 24. Re1 {[%emt 0:01:55]} Bb4 {[%emt 0:08:22]} 25. Ree3 {[%emt 0:01:16]} Bd5 {[%emt 0:03:35]} 26. c4 {[%emt 0:04:01]} Bxe4 {[%emt 0:02:57]} 27. Rxe4 {[%emt 0:00:03]} Rd8 {[%emt 0:00:10]} 28. Rxd8 {[%emt 0:06:45]} Rxd8 {[%emt 0:00:02]} 29. Rd4 {[%emt 0:00:58]} Rxd4 {[%emt 0:08:08]} 30. Bxd4 {[%emt 0:00:03]} Bf8 {[%emt 0:00:10]} 31. f4 {[%emt 0:02:08]} Ne7 {[%emt 0:03:10]} 32. Kf3 {[%emt 0:00:52]} c5 {[%emt 0:02:35]} 33. Bc3 {[%emt 0:00:14]} Kc8 {[%emt 0:00:52]} 34. Ke4 {[%emt 0:00:15]} g6 {[%emt 0:01:19]} 35. Nf6 {[%emt 0:07:05]} Kd8 {[%emt 0:03:46]} 36. h4 {[%emt 0:04:45]} Bg7 {[%emt 0:05:49]} 37. Nd5 {[%emt 0:01:23]} Bf8 {[%emt 0:02:02]} 38. h5 {[%emt 0:01:24]} gxh5 {[%emt 0:00:23]} 39. gxh5 {[%emt 0:00:05]} Nc6 {[%emt 0:02:12]} 40. Nf6 {[%emt 0:04:38]} Ke7 {[%emt 0:01:11]} 41. Kd5 {[%emt 0:51:52]} Nb8 {[%emt 0:53:54]} 42. Ng8+ {[%emt 0:00:00]} Ke8 {[%emt 0:00:00]} 43. f5 {[%emt 0:00:00]} c6+ {[%emt 0:00:00]} 44. Ke4 {[%emt 0:00:00]} Na6 {[%emt 0:00:00]} 45. Bd2 {[%emt 0:00:00]} Nb4 {[%emt 0:00:00]} 46. Bxh6 {[%emt 0:00:00]} Bxh6 {[%emt 0:00:00]} 47. Nxh6 {[%emt 0:00:00]} Nc2 {[%emt 0:00:00]} 48. f6 {[%emt 0:00:00]} Nd4 {[%emt 0:00:00]} 49. Nf5 {[%emt 0:00:00]} 1-0

[Event "FIDE Chesscom Grand Swiss 2019"]
[Site "Douglas-Isle of Man"]
[Date "2019.10.15"]
[Round "6.23"]
[White "Sargissian, Gabriel"]
[Black "Abasov, Nijat"]
[Result "1/2-1/2"]
[ECO "D16"]
[WhiteElo "2690"]
[BlackElo "2632"]
[Annotator "RC"]
[PlyCount "157"]
[EventDate "2019.10.10"]
[EventType "swiss"]
[EventCountry "GBR"]
[SourceTitle "playchess.com"]
[Source "ChessBase"]
[SourceQuality "1"]
[TimeControl "40/6000+30:20/3000+30:900+30"]

1. d4 {[%emt 0:00:41]} d5 {[%emt 0:00:57]} 2. c4 {[%emt 0:00:00]} c6 {[%emt 0:00:05]} 3. Nf3 {[%emt 0:00:00]} Nf6 {[%emt 0:00:28]} 4. Nc3 {[%emt 0:00:03]} dxc4 {[%emt 0:00:10]} 5. a4 {[%emt 0:00:07]} e6 {[%emt 0:01:16]} 6. e3 {[%emt 0:01:46]} c5 {[%emt 0:00:17]} 7. Bxc4 {[%emt 0:00:23]} cxd4 {[%emt 0:00:07]} 8. Nxd4 {[%emt 0:01:22]} Bb4 {[%emt 0:02:29]} 9. O-O {[%emt 0:01:13]} O-O {[%emt 0:01:08]} 10. Qe2 {[%emt 0:02:52]} a6 {[%emt 0:14:22]} 11. Rd1 {[%emt 0:08:12]} Qc7 {[%emt 0:02:02]} 12. Bd2 {[%emt 0:02:35]} Nc6 {[%emt 0:06:40]} 13. Nxc6 {[%emt 0:01:22]} Qxc6 {[%emt 0:02:52]} 14. Ne4 {[%emt 0:24:31]} Be7 {[%emt 0:01:16]} 15. Nxf6+ {[%emt 0:01:14]} Bxf6 {[%emt 0:00:07]} 16. Bb4 {[%emt 0:00:38]} Rd8 {[%emt 0:00:26]} 17. Bc3 {[%emt 0:00:19]} Rxd1+ {[%emt 0:37:46]} 18. Rxd1 {[%emt 0:00:36]} e5 {[%emt 0:00:06]} 19. Bxe5 {[%emt 0:03:35]} Be6 {[%emt 0:00:07]} 20. Bxe6 {[%emt 0:01:00]} Bxe5 {[%emt 0:00:39]} 21. Bd5 {[%emt 0:16:31]} Qxa4 {[%emt 0:01:27]} 22. b3 {[%emt 0:05:10]} Qd7 {[%emt 0:06:11]} 23. Qf3 {[%emt 0:00:57]} Qc7 {[%emt 0:00:16]} 24. g3 {[%emt 0:00:56]} g6 {[%emt 0:01:00]} 25. Bxb7 {[%emt 0:00:27]} Rb8 {[%emt 0:01:18]} 26. Bd5 {[%emt 0:01:49]} a5 {[%emt 0:01:39]} 27. Kg2 {[%emt 0:03:41]} Kg7 {[%emt 0:00:23]} 28. Rd3 {[%emt 0:04:24]} Rb6 {[%emt 0:02:44]} 29. Qd1 {[%emt 0:01:12]} Rd6 {[%emt 0:05:55]} 30. e4 {[%emt 0:00:17]} Rd8 {[%emt 0:01:18]} 31. Rd2 {[%emt 0:03:09]} Qc3 {[%emt 0:02:48]} 32. Ra2 {[%emt 0:01:22]} Rd7 {[%emt 0:04:21]} 33. Qe2 {[%emt 0:07:20]} Rc7 {[%emt 0:00:39]} 34. Qb5 {[%emt 0:01:21]} Bd4 {[%emt 0:01:14]} 35. Bc4 {[%emt 0:02:57]} Re7 {[%emt 0:03:32]} 36. Qd5 {[%emt 0:00:52]} h5 {[%emt 0:03:51]} 37. h4 {[%emt 0:02:28]} Bf6 {[%emt 0:00:40]} 38. f4 {[%emt 0:05:12]} Bd4 {[%emt 0:00:40]} 39. e5 {[%emt 0:01:02]} a4 {[%emt 0:02:23]} 40. Qf3 {[%emt 0:05:49]} Qxf3+ {[%emt 0:03:24]} 41. Kxf3 {[%emt 0:00:56]} axb3 {[%emt 0:00:06]} 42. Bxb3 {[%emt 0:00:07]} Rb7 {[%emt 0:05:11]} 43. Bd5 {[%emt 0:00:43]} Ra7 {[%emt 0:01:05]} 44. Rd2 {[%emt 0:05:32]} Ra3+ {[%emt 0:00:23]} 45. Kg2 {[%emt 0:00:07]} Be3 {[%emt 0:02:33]} 46. Rd1 {[%emt 0:01:35]} Ra4 {[%emt 0:03:51]} 47. Rb1 {[%emt 0:03:50]} Ra5 {[%emt 0:00:53]} 48. e6 {[%emt 0:04:40]} fxe6 {[%emt 0:01:15]} 49. Bxe6 {[%emt 0:00:03]} Kf6 {[%emt 0:00:22]} 50. Bc4 {[%emt 0:00:32]} Ra4 {[%emt 0:00:28]} 51. Bd5 {[%emt 0:03:13]} Ra5 {[%emt 0:01:24]} 52. Rd1 {[%emt 0:01:02]} Bc5 {[%emt 0:02:13]} 53. Re1 {[%emt 0:03:13]} Ra6 {[%emt 0:02:57]} 54. Re5 {[%emt 0:02:16]} Bd4 {[%emt 0:04:15]} 55. Re8 {[%emt 0:00:44]} Rd6 {[%emt 0:04:35]} 56. Be4 {[%emt 0:00:10]} Bb6 {[%emt 0:13:04]} 57. Rc8 {[%emt 0:06:53]} Kg7 {[%emt 0:01:19]} 58. Kf3 {[%emt 0:01:14]} Kf7 {[%emt 0:02:47]} 59. Rb8 {[%emt 0:02:30]} Bd8 {[%emt 0:01:03]} 60. Rc8 {[%emt 0:03:08]} Kg7 {[%emt 0:00:25]} 61. Bc2 {[%emt 0:15:49]} Bf6 {[%emt 0:15:44]} 62. Rc7+ {[%emt 0:00:55]} Kh6 {[%emt 0:00:17]} 63. Be4 {[%emt 0:04:42]} Re6 {[%emt 0:01:24]} 64. Bd5 {[%emt 0:04:42]} Re7 {[%emt 0:00:18]} 65. Rc6 {[%emt 0:00:08]} Kg7 {[%emt 0:00:08]} 66. Rc8 {[%emt 0:03:02]} Ra7 {[%emt 0:00:19]} 67. Rb8 {[%emt 0:00:26]} Rc7 {[%emt 0:00:30]} 68. Be4 {[%emt 0:01:07]} Ra7 {[%emt 0:01:07]} 69. Rb6 {[%emt 0:01:00]} Ra3+ {[%emt 0:00:48]} 70. Kg2 {[%emt 0:00:06]} Ra2+ {[%emt 0:00:12]} 71. Kh3 {[%emt 0:00:06]} Re2 {[%emt 0:01:52]} 72. Rb7+ {[%emt 0:00:22]} Kh6 {[%emt 0:00:04]} 73. Bd5 {[%emt 0:00:09]} Re7 {[%emt 0:00:21]} 74. Rb6 {[%emt 0:00:05]} Kg7 {[%emt 0:00:09]} 75. Be6 {[%emt 0:00:06]} Rc7 {[%emt 0:00:19]} 76. Rb5 {[%emt 0:00:42]} Be7 {[%emt 0:00:56]} 77. f5 {[%emt 0:00:25]} Rc5 {[%emt 0:03:37]} 78. Rb7 {[%emt 0:00:23]} Kf6 {[%emt 0:00:07]} 79. Bd7 {[%emt 0:02:10]} 1/2-1/2

[Event "FIDE Chesscom Grand Swiss 2019"]
[Site "Douglas-Isle of Man"]
[Date "2019.10.15"]
[Round "6.24"]
[White "Sarana, Alexey"]
[Black "Korobov, Anton"]
[Result "1/2-1/2"]
[ECO "D24"]
[WhiteElo "2655"]
[BlackElo "2679"]
[Annotator "RC"]
[PlyCount "91"]
[EventDate "2019.10.10"]
[EventType "swiss"]
[EventCountry "GBR"]
[SourceTitle "playchess.com"]
[Source "ChessBase"]
[SourceQuality "1"]
[TimeControl "40/6000+30:20/3000+30:900+30"]

1. d4 {[%emt 0:00:00]} Nf6 {[%emt 0:00:00]} 2. c4 {[%emt 0:00:00]} e6 {[%emt 0:00:00]} 3. Nf3 {[%emt 0:00:00]} d5 {[%emt 0:00:00]} 4. Nc3 {[%emt 0:00:00]} dxc4 {[%emt 0:00:20]} 5. e4 {[%emt 0:00:11]} b5 {[%emt 0:00:08]} 6. e5 {[%emt 0:00:12]} Nd5 {[%emt 0:00:05]} 7. Nxb5 {[%emt 0:00:06]} Nb6 {[%emt 0:00:05]} 8. Be2 {[%emt 0:00:29]} Be7 {[%emt 0:00:08]} 9. Be3 {[%emt 0:00:37]} Nc6 {[%emt 0:01:29]} 10. a3 {[%emt 0:00:08]} Rb8 {[%emt 0:07:15]} 11. Qc2 {[%emt 0:00:37]} O-O {[%emt 0:01:23]} 12. h4 {[%emt 0:00:25]} h6 {[%emt 0:05:14]} 13. Rd1 {[%emt 0:01:45]} Ba6 {[%emt 0:06:19]} 14. Nc3 {[%emt 0:00:07]} Nd5 {[%emt 0:01:33]} 15. Bc1 {[%emt 0:06:27]} Nxc3 {[%emt 0:11:10]} 16. bxc3 {[%emt 0:00:22]} Qd5 {[%emt 0:01:02]} 17. Rh3 {[%emt 0:00:29]} f5 {[%emt 0:09:02]} 18. exf6 {[%emt 0:02:10]} Rxf6 {[%emt 0:04:37]} 19. Kf1 {[%emt 0:01:24]} Rb3 {[%emt 0:06:48]} 20. Kg1 {[%emt 0:00:36]} Bd6 {[%emt 0:06:35]} 21. a4 {[%emt 0:02:58]} Bb7 {[%emt 0:11:09]} 22. Bf1 {[%emt 0:09:56]} Ba8 {[%emt 0:15:19]} 23. Re1 {[%emt 0:10:28]} Bb7 {[%emt 0:02:03]} 24. Rd1 {[%emt 0:09:24]} Ba8 {[%emt 0:00:38]} 25. Be3 {[%emt 0:02:52]} Qa5 {[%emt 0:01:07]} 26. Rc1 {[%emt 0:04:42]} Qxa4 {[%emt 0:01:08]} 27. Nd2 {[%emt 0:01:48]} Na5 {[%emt 0:00:38]} 28. Ne4 {[%emt 0:13:16]} Bxe4 {[%emt 0:00:13]} 29. Qxe4 {[%emt 0:00:02]} Qb5 {[%emt 0:00:33]} 30. g4 {[%emt 0:07:09]} Qb7 {[%emt 0:04:40]} 31. Bg2 {[%emt 0:01:27]} Qxe4 {[%emt 0:00:38]} 32. Bxe4 {[%emt 0:00:02]} Rb5 {[%emt 0:02:29]} 33. g5 {[%emt 0:00:11]} Rf7 {[%emt 0:04:33]} 34. Ra1 {[%emt 0:10:12]} Bf4 {[%emt 0:00:48]} 35. Bg6 {[%emt 0:07:02]} Rf8 {[%emt 0:00:06]} 36. gxh6 {[%emt 0:00:44]} gxh6 {[%emt 0:02:01]} 37. Rf3 {[%emt 0:01:07]} Bxe3 {[%emt 0:00:08]} 38. Rxe3 {[%emt 0:00:02]} Rf6 {[%emt 0:01:29]} 39. h5 {[%emt 0:03:38]} Nc6 {[%emt 0:01:12]} 40. Be4 {[%emt 0:02:51]} Ra5 {[%emt 0:01:49]} 41. Rb1 {[%emt 0:58:42]} Ne7 {[%emt 0:53:42]} 42. Rb7 {[%emt 0:03:13]} Rg5+ {[%emt 0:00:00]} 43. Kf1 {[%emt 0:00:00]} Nd5 {[%emt 0:00:00]} 44. Bxd5 {[%emt 0:00:00]} exd5 {[%emt 0:00:00]} 45. Rxc7 {[%emt 0:00:00]} Rf7 {[%emt 0:00:00]} 46. Re8+ {[%emt 0:00:00]} 1/2-1/2